[Event "*** MasterClass Titled Tuesday Blitz"]
[Site "Chess.com"]
[Date "2017.11.07"]
[Round "9"]
[White "ValeriyGrinev"]
[Black "hypert"]
[Result "1-0"]
[WhiteElo "2429"]
[BlackElo "2320"]
[TimeControl "180+2"]
[EndTime "16:07:49 PST"]
[Termination "ValeriyGrinev won on time"]

1. d4 {[%clk 0:03:01.9]} 1... Nf6 {[%clk 0:02:53.8]} 2. c4 {[%clk 0:03:02.5]}
2... e6 {[%clk 0:02:54.4]} 3. Nc3 {[%clk 0:03:03.9]} 3... Bb4 {[%clk 0:02:54.1]}
4. e3 {[%clk 0:03:05.5]} 4... d5 {[%clk 0:02:54.3]} 5. a3 {[%clk 0:03:05.3]}
5... Be7 {[%clk 0:02:53.4]} 6. b4 {[%clk 0:03:01.9]} 6... dxc4 {[%clk
0:02:52.3]} 7. Bxc4 {[%clk 0:03:02.3]} 7... b6 {[%clk 0:02:53.8]} 8. Qf3 {[%clk
0:03:01.4]} 8... c6 {[%clk 0:02:53.6]} 9. Nge2 {[%clk 0:02:53.9]} 9... O-O
{[%clk 0:02:53.7]} 10. e4 {[%clk 0:02:51.2]} 10... Bb7 {[%clk 0:02:51.6]} 11. e5
{[%clk 0:02:52]} 11... Nd5 {[%clk 0:02:52.2]} 12. O-O {[%clk 0:02:52.9]} 12...
c5 {[%clk 0:02:49]} 13. Bxd5 {[%clk 0:02:52]} 13... Bxd5 {[%clk 0:02:47.5]} 14.
Nxd5 {[%clk 0:02:52.7]} 14... Qxd5 {[%clk 0:02:48.7]} 15. Qxd5 {[%clk
0:02:53.6]} 15... exd5 {[%clk 0:02:50.5]} 16. bxc5 {[%clk 0:02:55.2]} 16... bxc5
{[%clk 0:02:50]} 17. dxc5 {[%clk 0:02:57.1]} 17... Bxc5 {[%clk 0:02:49.6]} 18.
Bb2 {[%clk 0:02:57.2]} 18... Nd7 {[%clk 0:02:46.1]} 19. Rfd1 {[%clk 0:02:58.7]}
19... Nb6 {[%clk 0:02:46.5]} 20. Bd4 {[%clk 0:03:00.3]} 20... Rfc8 {[%clk
0:02:46.4]} 21. Bxc5 {[%clk 0:03:00.6]} 21... Rxc5 {[%clk 0:02:46.9]} 22. Nd4
{[%clk 0:03:02.5]} 22... Rac8 {[%clk 0:02:45.9]} 23. f4 {[%clk 0:03:02]} 23...
Rc3 {[%clk 0:02:43.7]} 24. a4 {[%clk 0:03:01.6]} 24... g6 {[%clk 0:02:33.2]} 25.
a5 {[%clk 0:03:02]} 25... Nc4 {[%clk 0:02:33.6]} 26. Nb5 {[%clk 0:03:03.4]}
26... Rc2 {[%clk 0:02:28.6]} 27. Nxa7 {[%clk 0:03:03.9]} 27... Ra8 {[%clk
0:02:25.7]} 28. Nb5 {[%clk 0:02:58.2]} 28... Ne3 {[%clk 0:02:19.1]} 29. Rdc1
{[%clk 0:02:57]} 29... Rxg2+ {[%clk 0:02:19.6]} 30. Kh1 {[%clk 0:02:58.7]} 30...
Rb2 {[%clk 0:02:19.4]} 31. Nc7 {[%clk 0:02:52.6]} 31... Ra7 {[%clk 0:02:19.9]}
32. a6 {[%clk 0:02:54.5]} 32... Nc2 {[%clk 0:01:51.5]} 33. Ra5 {[%clk
0:02:52.1]} 33... d4 {[%clk 0:01:34.6]} 34. Nb5 {[%clk 0:02:50.3]} 34... Ra8
{[%clk 0:01:31.8]} 35. a7 {[%clk 0:02:50.8]} 35... d3 {[%clk 0:01:31.8]} 36. Nc7
{[%clk 0:02:50]} 36... Rxa7 {[%clk 0:01:13]} 37. Rxa7 {[%clk 0:02:50.2]} 37...
d2 {[%clk 0:01:08.9]} 38. Rg1 {[%clk 0:02:50.6]} 38... Ne3 {[%clk 0:01:01.2]}
39. Ra8+ {[%clk 0:02:51.3]} 39... Kg7 {[%clk 0:01:01.6]} 40. Rd8 {[%clk
0:02:49.2]} 40... Rc2 {[%clk 0:00:41.6]} 41. Ne8+ {[%clk 0:02:48.9]} 41... Kh6
{[%clk 0:00:42.1]} 42. Nf6 {[%clk 0:02:50.4]} 42... g5 {[%clk 0:00:24.5]} 43.
fxg5+ {[%clk 0:02:49.4]} 43... Kg6 {[%clk 0:00:25]} 44. Rd3 {[%clk 0:02:44.8]}
44... d1=Q {[%clk 0:00:23.6]} 45. Rdxd1 {[%clk 0:02:44.2]} 45... Nxd1 {[%clk
0:00:25.5]} 46. Rxd1 {[%clk 0:02:45.6]} 46... Kxg5 {[%clk 0:00:26.9]} 47. Nxh7+
{[%clk 0:02:46.8]} 47... Kf5 {[%clk 0:00:27.3]} 48. Rf1+ {[%clk 0:02:47]} 48...
Kg6 {[%clk 0:00:25.2]} 49. e6 {[%clk 0:02:43.3]} 49... fxe6 {[%clk 0:00:18.4]}
50. Nf8+ {[%clk 0:02:44.2]} 50... Kg5 {[%clk 0:00:18.5]} 51. Nxe6+ {[%clk
0:02:46.1]} 51... Kg4 {[%clk 0:00:19.6]} 52. Rf4+ {[%clk 0:02:44.2]} 52... Kh5
{[%clk 0:00:16.6]} 53. Nd4 {[%clk 0:02:42.7]} 53... Rc1+ {[%clk 0:00:17.2]} 54.
Kg2 {[%clk 0:02:44.1]} 54... Rc3 {[%clk 0:00:17.7]} 55. Nf3 {[%clk 0:02:44.1]}
55... Kh6 {[%clk 0:00:17.8]} 56. Kg3 {[%clk 0:02:45.5]} 56... Kh5 {[%clk
0:00:18.8]} 57. h4 {[%clk 0:02:46.1]} 57... Kh6 {[%clk 0:00:19.9]} 58. Rf5
{[%clk 0:02:47.1]} 58... Kg6 {[%clk 0:00:20.8]} 59. Rg5+ {[%clk 0:02:47.5]}
59... Kh6 {[%clk 0:00:21.7]} 60. Ra5 {[%clk 0:02:46.9]} 60... Rc1 {[%clk
0:00:23.6]} 61. Ra4 {[%clk 0:02:46.6]} 61... Kg6 {[%clk 0:00:24.8]} 62. Kg4
{[%clk 0:02:47.8]} 62... Kh6 {[%clk 0:00:25.7]} 63. Ra6+ {[%clk 0:02:48.7]}
63... Kh7 {[%clk 0:00:26.6]} 64. Ng5+ {[%clk 0:02:50.1]} 64... Kg7 {[%clk
0:00:26.9]} 65. Ra7+ {[%clk 0:02:49.6]} 65... Kh6 {[%clk 0:00:27.3]} 66. Rh7+
{[%clk 0:02:48.7]} 66... Kg6 {[%clk 0:00:28.1]} 67. h5+ {[%clk 0:02:50.6]} 67...
Kf6 {[%clk 0:00:29]} 68. Rf7+ {[%clk 0:02:52.5]} 68... Ke5 {[%clk 0:00:29.1]}
69. Rf5+ {[%clk 0:02:54.4]} 69... Kd6 {[%clk 0:00:29.5]} 70. h6 {[%clk
0:02:55.9]} 70... Rh1 {[%clk 0:00:27.8]} 71. h7 {[%clk 0:02:55.9]} 71... Ke7
{[%clk 0:00:29.3]} 72. Rf7+ {[%clk 0:02:55.4]} 72... Ke8 {[%clk 0:00:30.1]} 73.
Rg7 {[%clk 0:02:57]} 1-0

[Event "*** MasterClass Titled Tuesday Blitz"]
[Site "Chess.com"]
[Date "2017.11.07"]
[Round "9"]
[White "Margency"]
[Black "PositionalGenius"]
[Result "1-0"]
[WhiteElo "2501"]
[BlackElo "2400"]
[TimeControl "180+2"]
[EndTime "16:07:59 PST"]
[Termination "Margency won by resignation"]

1. d4 {[%clk 0:03:01.9]} 1... Nf6 {[%clk 0:03:00]} 2. c4 {[%clk 0:03:02.2]} 2...
e6 {[%clk 0:03:01]} 3. Nc3 {[%clk 0:02:59.1]} 3... Bb4 {[%clk 0:03:01.4]} 4. e3
{[%clk 0:03:00.2]} 4... O-O {[%clk 0:03:01.6]} 5. Ne2 {[%clk 0:03:00.8]} 5... d5
{[%clk 0:02:56]} 6. a3 {[%clk 0:03:01.5]} 6... Be7 {[%clk 0:02:56.9]} 7. cxd5
{[%clk 0:03:00.2]} 7... exd5 {[%clk 0:02:58.8]} 8. Ng3 {[%clk 0:03:00.4]} 8...
Re8 {[%clk 0:02:56]} 9. Bd3 {[%clk 0:03:00.5]} 9... Bf8 {[%clk 0:02:56.7]} 10.
O-O {[%clk 0:03:00.8]} 10... Nbd7 {[%clk 0:02:49.6]} 11. b4 {[%clk 0:02:52.6]}
11... c6 {[%clk 0:02:39.3]} 12. Bd2 {[%clk 0:02:39.7]} 12... a5 {[%clk
0:02:35.7]} 13. b5 {[%clk 0:02:40]} 13... c5 {[%clk 0:02:36.6]} 14. dxc5 {[%clk
0:02:39.3]} 14... Nxc5 {[%clk 0:02:38.5]} 15. Bf5 {[%clk 0:02:40.4]} 15... d4
{[%clk 0:02:31]} 16. exd4 {[%clk 0:02:28.2]} 16... Qxd4 {[%clk 0:02:32.9]} 17.
Nge2 {[%clk 0:02:05.7]} 17... Qd8 {[%clk 0:02:11.9]} 18. Bxc8 {[%clk 0:02:01.7]}
18... Rxc8 {[%clk 0:02:13.8]} 19. Bg5 {[%clk 0:01:40.6]} 19... Qxd1 {[%clk
0:02:05.7]} 20. Rfxd1 {[%clk 0:01:40.5]} 20... Nfe4 {[%clk 0:02:06.3]} 21. Nxe4
{[%clk 0:01:34.4]} 21... Nxe4 {[%clk 0:02:08.2]} 22. Be3 {[%clk 0:01:34.2]}
22... Nc3 {[%clk 0:01:59.7]} 23. Nxc3 {[%clk 0:01:35.1]} 23... Rxc3 {[%clk
0:02:01.6]} 24. a4 {[%clk 0:01:25.6]} 24... Rec8 {[%clk 0:01:25.5]} 25. g3
{[%clk 0:01:20]} 25... Bc5 {[%clk 0:01:11.4]} 26. Rac1 {[%clk 0:01:17.7]} 26...
Rxc1 {[%clk 0:00:20.6]} 27. Rxc1 {[%clk 0:01:18.2]} 27... b6 {[%clk 0:00:22]}
28. Kg2 {[%clk 0:01:10]} 28... Kf8 {[%clk 0:00:21.7]} 29. Kf3 {[%clk 0:01:05.2]}
29... Ke7 {[%clk 0:00:21.6]} 30. Bxc5+ {[%clk 0:01:01.1]} 30... bxc5 {[%clk
0:00:23.5]} 31. Ke4 {[%clk 0:01:01.1]} 31... Kd6 {[%clk 0:00:23.9]} 32. Kd3
{[%clk 0:00:50]} 32... Kd5 {[%clk 0:00:24.4]} 33. Kc3 {[%clk 0:00:51]} 33... c4
{[%clk 0:00:19.4]} 34. Rd1+ {[%clk 0:00:46]} 34... Ke6 {[%clk 0:00:19.6]} 35.
Rd4 {[%clk 0:00:46.2]} 35... Kf6 {[%clk 0:00:18.2]} 36. Rxc4 {[%clk 0:00:46.2]}
36... Rd8 {[%clk 0:00:19]} 37. Rc6+ {[%clk 0:00:28.8]} 37... Ke5 {[%clk
0:00:19.2]} 38. Rc7 {[%clk 0:00:29.5]} 38... Ke6 {[%clk 0:00:12.8]} 39. b6
{[%clk 0:00:27.1]} 39... Rb8 {[%clk 0:00:10]} 40. b7 {[%clk 0:00:27.3]} 40... g6
{[%clk 0:00:10.9]} 41. Kc4 {[%clk 0:00:28.4]} 41... Kd6 {[%clk 0:00:08.6]} 42.
Rxf7 {[%clk 0:00:28.5]} 42... h6 {[%clk 0:00:07]} 43. Kb5 {[%clk 0:00:28.6]}
43... Kd5 {[%clk 0:00:06.2]} 44. Kb6 {[%clk 0:00:28.9]} 44... Kd6 {[%clk
0:00:06.5]} 45. Rc7 {[%clk 0:00:27.3]} 45... g5 {[%clk 0:00:05.6]} 46. Rc8
{[%clk 0:00:27.5]} 1-0

[Event "*** MasterClass Titled Tuesday Blitz"]
[Site "Chess.com"]
[Date "2017.11.07"]
[Round "9"]
[White "Rodalquilar"]
[Black "pastouche06"]
[Result "1-0"]
[WhiteElo "2501"]
[BlackElo "2357"]
[TimeControl "180+2"]
[EndTime "16:08:05 PST"]
[Termination "Rodalquilar won by resignation"]

1. d4 {[%clk 0:03:01.9]} 1... Nf6 {[%clk 0:02:58.1]} 2. Bf4 {[%clk 0:03:02.7]}
2... g6 {[%clk 0:02:58.5]} 3. e3 {[%clk 0:03:04]} 3... Bg7 {[%clk 0:02:59]} 4.
Nf3 {[%clk 0:03:05.5]} 4... d6 {[%clk 0:02:58.6]} 5. Be2 {[%clk 0:03:05.7]} 5...
O-O {[%clk 0:02:57.9]} 6. O-O {[%clk 0:03:06.8]} 6... Nbd7 {[%clk 0:02:52.8]} 7.
h3 {[%clk 0:03:07.4]} 7... b6 {[%clk 0:02:53.7]} 8. a4 {[%clk 0:03:06.7]} 8...
c5 {[%clk 0:02:53.9]} 9. c3 {[%clk 0:03:07.5]} 9... Bb7 {[%clk 0:02:53]} 10.
Nbd2 {[%clk 0:03:07.5]} 10... Rc8 {[%clk 0:02:29.6]} 11. Bh2 {[%clk 0:03:05.8]}
11... Rc7 {[%clk 0:02:01.5]} 12. a5 {[%clk 0:03:06]} 12... h6 {[%clk 0:01:45.2]}
13. Qb3 {[%clk 0:02:26.4]} 13... Ne4 {[%clk 0:01:25.1]} 14. Nxe4 {[%clk
0:02:23.3]} 14... Bxe4 {[%clk 0:01:25.7]} 15. axb6 {[%clk 0:02:24.6]} 15... axb6
{[%clk 0:01:23.5]} 16. d5 {[%clk 0:02:04.5]} 16... Nf6 {[%clk 0:01:01.2]} 17. c4
{[%clk 0:02:05.1]} 17... Qb8 {[%clk 0:01:02.1]} 18. Nd2 {[%clk 0:02:01.5]} 18...
Bf5 {[%clk 0:01:02.4]} 19. Ra6 {[%clk 0:01:56]} 19... Rb7 {[%clk 0:00:53.2]} 20.
Rfa1 {[%clk 0:01:53.8]} 20... Bd7 {[%clk 0:00:49.3]} 21. e4 {[%clk 0:01:46.9]}
21... Rd8 {[%clk 0:00:38.1]} 22. e5 {[%clk 0:01:47.4]} 22... Ne8 {[%clk
0:00:37.8]} 23. e6 {[%clk 0:01:34.5]} 23... fxe6 {[%clk 0:00:31.6]} 24. dxe6
{[%clk 0:01:36.4]} 24... Bxe6 {[%clk 0:00:32.4]} 25. Bf3 {[%clk 0:01:37.6]}
25... Rbd7 {[%clk 0:00:07.2]} 26. Rxb6 {[%clk 0:01:37.5]} 26... Qc7 {[%clk
0:00:07.2]} 27. Ne4 {[%clk 0:01:07.3]} 27... Nf6 {[%clk 0:00:07.6]} 28. Nc3
{[%clk 0:01:06.7]} 28... Qc8 {[%clk 0:00:04.7]} 29. Ra8 {[%clk 0:00:54]} 29...
Qxa8 {[%clk 0:00:05.3]} 30. Bxa8 {[%clk 0:00:55.1]} 30... Rxa8 {[%clk
0:00:07.2]} 31. Rb8+ {[%clk 0:00:56.4]} 31... Rxb8 {[%clk 0:00:06.4]} 32. Qxb8+
{[%clk 0:00:58.3]} 32... Kh7 {[%clk 0:00:07.7]} 33. b3 {[%clk 0:00:57.6]} 33...
Nh5 {[%clk 0:00:05.1]} 34. Na4 {[%clk 0:00:50.7]} 34... Bf5 {[%clk 0:00:02.7]}
35. g4 {[%clk 0:00:50.4]} 35... Be4 {[%clk 0:00:02.9]} 36. gxh5 {[%clk
0:00:46.3]} 36... Rb7 {[%clk 0:00:03]} 37. hxg6+ {[%clk 0:00:45.8]} 37... Kxg6
{[%clk 0:00:03.3]} 38. Qe8+ {[%clk 0:00:46.7]} 38... Kh7 {[%clk 0:00:04.8]} 39.
Bxd6 {[%clk 0:00:42.3]} 39... Bf5 {[%clk 0:00:03.8]} 40. Bxe7 {[%clk 0:00:37.9]}
40... Rxb3 {[%clk 0:00:04.5]} 41. Bxc5 {[%clk 0:00:35.8]} 41... Rb1+ {[%clk
0:00:05.5]} 42. Kh2 {[%clk 0:00:37]} 42... Ra1 {[%clk 0:00:05.3]} 43. Qe7 {[%clk
0:00:31.1]} 43... Rxa4 {[%clk 0:00:05.2]} 44. Bd4 {[%clk 0:00:32.5]} 44... Kg6
{[%clk 0:00:02.1]} 45. Qxg7+ {[%clk 0:00:32.9]} 45... Kh5 {[%clk 0:00:03.3]} 46.
Qf7+ {[%clk 0:00:32.8]} 46... Kg5 {[%clk 0:00:04.2]} 47. Be3+ {[%clk 0:00:32]}
47... Kh4 {[%clk 0:00:04]} 48. Qf6+ {[%clk 0:00:33]} 1-0

[Event "*** MasterClass Titled Tuesday Blitz"]
[Site "Chess.com"]
[Date "2017.11.07"]
[Round "9"]
[White "ChristopherYoo"]
[Black "Bad4life"]
[Result "1-0"]
[WhiteElo "2273"]
[BlackElo "2361"]
[TimeControl "180+2"]
[EndTime "16:08:06 PST"]
[Termination "ChristopherYoo won on time"]

1. e4 {[%clk 0:03:01.9]} 1... d6 {[%clk 0:03:01.3]} 2. d4 {[%clk 0:03:00]} 2...
Nf6 {[%clk 0:03:02.6]} 3. Nc3 {[%clk 0:03:01.1]} 3... g6 {[%clk 0:03:03.9]} 4.
h3 {[%clk 0:02:56.8]} 4... Bg7 {[%clk 0:03:03.8]} 5. Nf3 {[%clk 0:02:57.9]} 5...
a6 {[%clk 0:03:04.5]} 6. Bd3 {[%clk 0:02:56.6]} 6... b5 {[%clk 0:03:05]} 7. a4
{[%clk 0:02:52.6]} 7... b4 {[%clk 0:03:02.5]} 8. Ne2 {[%clk 0:02:53.3]} 8... Bb7
{[%clk 0:03:03.3]} 9. Ng3 {[%clk 0:02:53.8]} 9... Nbd7 {[%clk 0:02:57.6]} 10. c3
{[%clk 0:02:54.3]} 10... a5 {[%clk 0:02:56.6]} 11. O-O {[%clk 0:02:54.6]} 11...
c5 {[%clk 0:02:55.6]} 12. Qe2 {[%clk 0:02:50.4]} 12... e5 {[%clk 0:02:52.1]} 13.
Be3 {[%clk 0:02:35.9]} 13... h5 {[%clk 0:02:32.7]} 14. Bg5 {[%clk 0:02:30.9]}
14... Qb6 {[%clk 0:02:27.2]} 15. dxe5 {[%clk 0:02:19.6]} 15... dxe5 {[%clk
0:02:23.1]} 16. Bb5 {[%clk 0:02:19.2]} 16... O-O {[%clk 0:02:09.8]} 17. Rad1
{[%clk 0:02:15.5]} 17... Rfd8 {[%clk 0:01:58.1]} 18. Nd2 {[%clk 0:02:09.3]}
18... Nf8 {[%clk 0:01:49.1]} 19. Nc4 {[%clk 0:02:07.7]} 19... Qc7 {[%clk
0:01:50.6]} 20. f4 {[%clk 0:01:58]} 20... N6h7 {[%clk 0:01:39.3]} 21. Bxd8
{[%clk 0:01:56.3]} 21... Rxd8 {[%clk 0:01:40.3]} 22. Rxd8 {[%clk 0:01:56.9]}
22... Qxd8 {[%clk 0:01:41.9]} 23. fxe5 {[%clk 0:01:46.2]} 23... Qh4 {[%clk
0:01:10.2]} 24. Qf2 {[%clk 0:01:27.6]} 24... Ng5 {[%clk 0:01:02.9]} 25. Be8
{[%clk 0:01:19.3]} 25... Ba6 {[%clk 0:00:45.3]} 26. Bxf7+ {[%clk 0:01:05.2]}
26... Kh7 {[%clk 0:00:46.8]} 27. Bd5 {[%clk 0:00:56]} 27... Bc8 {[%clk
0:00:29.9]} 28. Ne2 {[%clk 0:00:47.5]} 28... Nxh3+ {[%clk 0:00:21]} 29. gxh3
{[%clk 0:00:48.2]} 29... Qxh3 {[%clk 0:00:22.6]} 30. Qg2 {[%clk 0:00:45.7]}
30... Qd3 {[%clk 0:00:19.3]} 31. Qf3 {[%clk 0:00:45.4]} 31... Qc2 {[%clk
0:00:14.9]} 32. Nf4 {[%clk 0:00:28.2]} 32... Bg4 {[%clk 0:00:12.3]} 33. Qg2
{[%clk 0:00:27.4]} 33... Qxa4 {[%clk 0:00:09.8]} 34. Nh3 {[%clk 0:00:19.2]}
34... Bh6 {[%clk 0:00:03.4]} 35. Rf7+ {[%clk 0:00:14.5]} 35... Kh8 {[%clk
0:00:04.9]} 36. Ng5 {[%clk 0:00:10.8]} 36... Qd1+ {[%clk 0:00:04.8]} 37. Kh2
{[%clk 0:00:10.7]} 37... Bxg5 {[%clk 0:00:05.3]} 38. Rxf8+ {[%clk 0:00:11.9]}
38... Kg7 {[%clk 0:00:06.9]} 39. Rf7+ {[%clk 0:00:11.3]} 39... Kh6 {[%clk
0:00:07.9]} 40. e6 {[%clk 0:00:09.1]} 40... Qc1 {[%clk 0:00:06.7]} 41. Qf2
{[%clk 0:00:06.5]} 41... h4 {[%clk 0:00:06.4]} 42. e7 {[%clk 0:00:06.9]} 42...
Bd7 {[%clk 0:00:05.4]} 43. Rf8 {[%clk 0:00:06]} 1-0

[Event "*** MasterClass Titled Tuesday Blitz"]
[Site "Chess.com"]
[Date "2017.11.07"]
[Round "9"]
[White "FearNoEvil12"]
[Black "Abdodi"]
[Result "0-1"]
[WhiteElo "2020"]
[BlackElo "2124"]
[TimeControl "180+2"]
[EndTime "16:08:40 PST"]
[Termination "Abdodi won on time"]

1. e4 {[%clk 0:03:01.9]} 1... c6 {[%clk 0:03:00.2]} 2. d4 {[%clk 0:03:02.2]}
2... d5 {[%clk 0:03:00.6]} 3. Nc3 {[%clk 0:03:03.8]} 3... dxe4 {[%clk
0:02:59.1]} 4. Nxe4 {[%clk 0:03:05.7]} 4... Bf5 {[%clk 0:02:59.1]} 5. Ng3 {[%clk
0:03:07.6]} 5... Bg6 {[%clk 0:02:59.4]} 6. h4 {[%clk 0:03:08.8]} 6... h6 {[%clk
0:02:59.3]} 7. Nf3 {[%clk 0:03:09.3]} 7... Nd7 {[%clk 0:02:58.9]} 8. h5 {[%clk
0:03:09.4]} 8... Bh7 {[%clk 0:02:58.5]} 9. Bd3 {[%clk 0:03:11]} 9... Bxd3 {[%clk
0:02:58.4]} 10. Qxd3 {[%clk 0:03:12.5]} 10... Ngf6 {[%clk 0:02:58.6]} 11. Bf4
{[%clk 0:03:12.4]} 11... Qa5+ {[%clk 0:02:57.7]} 12. Bd2 {[%clk 0:03:12.8]}
12... Qc7 {[%clk 0:02:57.5]} 13. O-O-O {[%clk 0:03:12.7]} 13... e6 {[%clk
0:02:54.6]} 14. Rhe1 {[%clk 0:03:14.1]} 14... O-O-O {[%clk 0:02:48.7]} 15. Kb1
{[%clk 0:03:14.3]} 15... Bd6 {[%clk 0:02:48.5]} 16. Ne4 {[%clk 0:03:13.5]} 16...
Nxe4 {[%clk 0:02:48.7]} 17. Qxe4 {[%clk 0:03:14]} 17... Nf6 {[%clk 0:02:50.6]}
18. Qe2 {[%clk 0:03:13.9]} 18... Nxh5 {[%clk 0:02:48.3]} 19. Ne5 {[%clk
0:03:09.3]} 19... Bxe5 {[%clk 0:02:47.7]} 20. dxe5 {[%clk 0:03:07.7]} 20... g6
{[%clk 0:02:45.4]} 21. Bb4 {[%clk 0:02:58.6]} 21... Nf4 {[%clk 0:02:36.1]} 22.
Qe3 {[%clk 0:02:58.9]} 22... Nd5 {[%clk 0:02:29.6]} 23. Rxd5 {[%clk 0:02:58.7]}
23... Rxd5 {[%clk 0:02:18.7]} 24. Qxa7 {[%clk 0:02:58.7]} 24... Qb8 {[%clk
0:02:19.2]} 25. Qe3 {[%clk 0:02:55.1]} 25... Rhd8 {[%clk 0:02:14.3]} 26. Bd6
{[%clk 0:02:54.4]} 26... Qa8 {[%clk 0:02:10.6]} 27. c4 {[%clk 0:02:53.3]} 27...
Ra5 {[%clk 0:02:07.8]} 28. Qb6 {[%clk 0:02:44.4]} 28... Rd7 {[%clk 0:02:00.6]}
29. Re3 {[%clk 0:02:44.5]} 29... Qa6 {[%clk 0:01:32.4]} 30. Qb3 {[%clk 0:02:42]}
30... Qa7 {[%clk 0:01:14.2]} 31. a3 {[%clk 0:02:38.9]} 31... Qd4 {[%clk
0:01:11]} 32. Ka2 {[%clk 0:02:29.6]} 32... h5 {[%clk 0:01:00.4]} 33. Qc2 {[%clk
0:02:11]} 33... Ra8 {[%clk 0:00:40.1]} 34. Re4 {[%clk 0:02:10]} 34... Qb6 {[%clk
0:00:35.1]} 35. c5 {[%clk 0:02:10.3]} 35... Qb5 {[%clk 0:00:31.1]} 36. Qc3
{[%clk 0:01:55.2]} 36... Qf1 {[%clk 0:00:29.4]} 37. Qf3 {[%clk 0:01:50]} 37...
Qc1 {[%clk 0:00:17.7]} 38. Rf4 {[%clk 0:01:37.2]} 38... Ra5 {[%clk 0:00:17.6]}
39. Rb4 {[%clk 0:01:34.8]} 39... Rxc5 {[%clk 0:00:16.9]} 40. Qf6 {[%clk
0:01:21.7]} 40... b5 {[%clk 0:00:17.4]} 41. Qh8+ {[%clk 0:01:21]} 41... Kb7
{[%clk 0:00:16.9]} 42. Qb8+ {[%clk 0:01:20.1]} 42... Ka6 {[%clk 0:00:18]} 43.
Bc7 {[%clk 0:00:36.8]} 43... Rxc7 {[%clk 0:00:16.2]} 44. Qxc7 {[%clk 0:00:32.2]}
44... Qd1 {[%clk 0:00:17.1]} 45. Qc8+ {[%clk 0:00:29.4]} 45... Ka7 {[%clk
0:00:18.2]} 46. Qc7+ {[%clk 0:00:26.4]} 46... Ka8 {[%clk 0:00:19.2]} 47. Qb6
{[%clk 0:00:22.2]} 47... Rc1 {[%clk 0:00:17.8]} 48. Qa6+ {[%clk 0:00:17.1]}
48... Kb8 {[%clk 0:00:17.5]} 49. Qb6+ {[%clk 0:00:17.5]} 49... Kc8 {[%clk
0:00:18.4]} 50. Qa6+ {[%clk 0:00:16.4]} 50... Kd8 {[%clk 0:00:19.2]} 51. Qa8+
{[%clk 0:00:13.2]} 51... Ke7 {[%clk 0:00:19.3]} 52. Qa7+ {[%clk 0:00:05.9]}
52... Kf8 {[%clk 0:00:19.7]} 0-1

[Event "*** MasterClass Titled Tuesday Blitz"]
[Site "Chess.com"]
[Date "2017.11.07"]
[Round "9"]
[White "Giorno"]
[Black "Shivagami"]
[Result "1-0"]
[WhiteElo "2345"]
[BlackElo "2057"]
[TimeControl "180+2"]
[EndTime "16:09:13 PST"]
[Termination "Giorno won by resignation"]

1. e4 {[%clk 0:03:01.9]} 1... Nc6 {[%clk 0:02:59.4]} 2. Nf3 {[%clk 0:03:01.5]}
2... d6 {[%clk 0:02:59.7]} 3. d4 {[%clk 0:03:01.7]} 3... Nf6 {[%clk 0:03:01]} 4.
d5 {[%clk 0:03:01.8]} 4... Nb8 {[%clk 0:02:52.3]} 5. Nbd2 {[%clk 0:02:57.9]}
5... e5 {[%clk 0:02:50]} 6. c4 {[%clk 0:02:49.2]} 6... Be7 {[%clk 0:02:50.4]} 7.
Bd3 {[%clk 0:02:50.2]} 7... O-O {[%clk 0:02:51.6]} 8. O-O {[%clk 0:02:47.8]}
8... Nbd7 {[%clk 0:02:51.9]} 9. Rb1 {[%clk 0:02:35.9]} 9... Re8 {[%clk
0:02:52.4]} 10. b4 {[%clk 0:02:36.4]} 10... Nf8 {[%clk 0:02:52.2]} 11. Re1
{[%clk 0:02:26.1]} 11... Ng6 {[%clk 0:02:51.5]} 12. Nf1 {[%clk 0:02:25.1]} 12...
Bf8 {[%clk 0:02:45.3]} 13. Ng3 {[%clk 0:02:22.7]} 13... c6 {[%clk 0:02:39.5]}
14. dxc6 {[%clk 0:02:20.4]} 14... bxc6 {[%clk 0:02:40.1]} 15. Bg5 {[%clk
0:02:20.2]} 15... h6 {[%clk 0:02:38.7]} 16. Be3 {[%clk 0:02:20.5]} 16... d5
{[%clk 0:02:29.5]} 17. Qc2 {[%clk 0:02:06.1]} 17... d4 {[%clk 0:02:23.3]} 18.
Bd2 {[%clk 0:02:07.2]} 18... Bg4 {[%clk 0:02:17.7]} 19. Be2 {[%clk 0:01:53.4]}
19... Nf4 {[%clk 0:02:17.4]} 20. Rb3 {[%clk 0:01:45.9]} 20... c5 {[%clk
0:01:55.6]} 21. b5 {[%clk 0:01:39.8]} 21... Qd7 {[%clk 0:01:44.6]} 22. a4 {[%clk
0:01:29.9]} 22... Rad8 {[%clk 0:01:42.6]} 23. Bd1 {[%clk 0:01:25.8]} 23... d3
{[%clk 0:01:40.7]} 24. Qc1 {[%clk 0:01:18.5]} 24... g5 {[%clk 0:01:19.7]} 25. a5
{[%clk 0:01:09.7]} 25... Bxf3 {[%clk 0:00:56.4]} 26. Bxf3 {[%clk 0:01:07.4]}
26... g4 {[%clk 0:00:57.6]} 27. Bd1 {[%clk 0:01:04.3]} 27... Qd6 {[%clk
0:00:39.3]} 28. Nf5 {[%clk 0:01:01.7]} 28... Qd7 {[%clk 0:00:36.2]} 29. g3
{[%clk 0:00:52]} 29... Nh3+ {[%clk 0:00:34.8]} 30. Kg2 {[%clk 0:00:46.7]} 30...
Nxe4 {[%clk 0:00:33.6]} 31. Rxe4 {[%clk 0:00:43.3]} 31... Qxf5 {[%clk
0:00:32.7]} 32. Rxg4+ {[%clk 0:00:43.9]} 32... Kh8 {[%clk 0:00:20.1]} 33. f3
{[%clk 0:00:26.6]} 33... h5 {[%clk 0:00:15.7]} 34. Rh4 {[%clk 0:00:21.4]} 34...
e4 {[%clk 0:00:14.1]} 35. Rxh3 {[%clk 0:00:13.4]} 35... exf3+ {[%clk 0:00:15]}
36. Bxf3 {[%clk 0:00:14.6]} 36... Re2+ {[%clk 0:00:14.9]} 37. Bxe2 {[%clk
0:00:15.1]} 37... dxe2 {[%clk 0:00:16.5]} 38. Rf3 {[%clk 0:00:15.7]} 38... Qg4
{[%clk 0:00:13.9]} 39. Rh4 {[%clk 0:00:15.5]} 39... Qg6 {[%clk 0:00:13.1]} 40.
Qe1 {[%clk 0:00:15.3]} 40... Re8 {[%clk 0:00:11.6]} 41. Rhf4 {[%clk 0:00:14.6]}
41... Bh6 {[%clk 0:00:10.1]} 42. Rf2 {[%clk 0:00:09.9]} 42... Bxf4 {[%clk
0:00:10.4]} 43. Bxf4 {[%clk 0:00:11.8]} 43... Qe4+ {[%clk 0:00:11.3]} 44. Kh3
{[%clk 0:00:12.8]} 44... Qf5+ {[%clk 0:00:11.5]} 45. Kg2 {[%clk 0:00:14.2]}
45... Qe4+ {[%clk 0:00:12.6]} 46. Kg1 {[%clk 0:00:15.7]} 46... Qxc4 {[%clk
0:00:13.1]} 47. b6 {[%clk 0:00:16.5]} 47... axb6 {[%clk 0:00:12.9]} 48. axb6
{[%clk 0:00:18.4]} 48... Qb4 {[%clk 0:00:14.4]} 49. Qxb4 {[%clk 0:00:12.7]}
49... cxb4 {[%clk 0:00:13.9]} 50. Rxe2 {[%clk 0:00:13.9]} 50... Rxe2 {[%clk
0:00:11.8]} 51. b7 {[%clk 0:00:15.3]} 51... Re1+ {[%clk 0:00:09.7]} 52. Kf2
{[%clk 0:00:15.2]} 52... Re8 {[%clk 0:00:10.2]} 53. b8=Q {[%clk 0:00:16.6]}
53... Rxb8 {[%clk 0:00:10.3]} 54. Bxb8 {[%clk 0:00:18.5]} 54... b3 {[%clk
0:00:11.2]} 55. Be5+ {[%clk 0:00:19.1]} 55... Kg8 {[%clk 0:00:10.6]} 56. Kf3
{[%clk 0:00:20.5]} 56... Kf8 {[%clk 0:00:12]} 57. Kf4 {[%clk 0:00:21.5]} 57...
Ke7 {[%clk 0:00:13.6]} 58. Kg5 {[%clk 0:00:22.9]} 1-0